fUST/lending_fUST_20241001
["ID","MTS","AMOUNT","RATE_DAILY","PERIOD"]
[339634614,1727772545221,500.0,0.00021999,120]
[339634615,1727772545546,500.0,0.00021999,120]
[339634616,1727772546669,500.0,0.00021999,120]
[339634617,1727772546741,500.0,0.00021999,120]
[339634618,1727772548214,500.0,0.00021999,120]
[339634619,1727772548378,500.0,0.00021999,120]
[339634620,1727772548455,500.0,0.00021999,120]
[339634621,1727772549312,500.0,0.00021999,120]
[339634622,1727772549628,500.0,0.00021999,120]
[339634623,1727772550469,500.0,0.00021999,120]
[339634624,1727772550526,500.0,0.00021999,120]
[339634625,1727772554694,614.89,0.00021999,120]
[339634626,1727772556155,500.0,0.00021999,120]
[339634627,1727772556640,572.72,0.00021999,120]
[339634628,1727772556819,500.0,0.00021999,120]
[339634629,1727772556898,500.0,0.00021999,120]
[339634630,1727772558056,500.0,0.00021999,120]
[339634631,1727772560255,500.0,0.00021999,120]
[339634632,1727772560302,500.0,0.00021999,120]
[339634633,1727772560955,500.0,0.00021999,120]
[339634634,1727772562083,768.18,0.00021999,120]
[339634635,1727772562633,500.0,0.00021999,120]
[339634636,1727772562800,500.0,0.00021999,120]
[339634640,1727772565701,511.58,0.00021999,120]
[339634641,1727772565957,500.0,0.00021999,120]
[339634642,1727772567495,500.0,0.00021999,120]
[339634643,1727772568100,560.06,0.00021999,120]
[339634644,1727772571334,500.0,0.00021999,120]
[339634645,1727772572845,500.0,0.00021999,120]
[339634646,1727772573716,271.19668786,0.00021999,120]
[339634647,1727772575041,500.0,0.00021999,120]
[339634648,1727772576694,500.0,0.00021999,120]
[339634649,1727772577870,500.0,0.00021999,120]
[339634650,1727772577941,557.33,0.00021999,120]
[339634651,1727772579822,500.0,0.00021999,120]
[339634652,1727772579867,500.0,0.00021999,120]
[339634653,1727772580131,550.03,0.00021999,120]
[339634654,1727772582912,500.0,0.00021999,120]
[339634655,1727772583041,500.0,0.00021999,120]
[339634656,1727772583493,500.0,0.00021999,120]
[339634657,1727772584087,500.0,0.00021999,120]
[339634658,1727772585778,500.0,0.00021999,120]
[339634659,1727772585964,500.0,0.00021999,120]
[339634660,1727772586513,563.94,0.00021999,120]
[339634661,1727772586872,500.0,0.00021999,120]
[339634662,1727772587041,500.0,0.00021999,120]
[339634666,1727772589834,594.16630369,0.00021999,120]
[339634667,1727772590551,500.0,0.00021999,120]
[339634668,1727772590760,500.0,0.00021999,120]
[339634669,1727772590816,500.59682487,0.00021999,120]
[339634670,1727772591235,500.0,0.00021999,120]
[339634671,1727772592193,500.0,0.00021999,120]
[339634672,1727772592828,500.0,0.00021999,120]
[339634673,1727772593565,500.0,0.00021999,120]
[339634674,1727772594156,500.0,0.00021999,120]
[339634675,1727772595350,500.0,0.00021999,120]
[339634676,1727772596161,500.0,0.00021999,120]
[339634677,1727772597366,500.0,0.00021999,120]
[339634678,1727772602454,500.0,0.00021999,120]
[339634679,1727772602783,583.86599324,0.00021999,120]
[339634680,1727772603378,1000.0,0.00021999,120]
[339634681,1727772603899,500.0,0.00021999,120]
[339634682,1727772603974,500.0,0.00021999,120]
[339634683,1727772606615,500.0,0.00021999,120]
[339634684,1727772607098,572.31,0.00021999,120]
[339634685,1727772608830,500.0,0.00021999,120]
[339634686,1727772609080,500.0,0.00021999,120]
[339634687,1727772609136,500.85477902,0.00021999,120]
[339634688,1727772609523,500.0,0.00021999,120]
[339634689,1727772610288,500.0,0.00021999,120]
[339634690,1727772614170,500.0,0.00021999,120]
[339634691,1727772614221,504.54208041,0.00021999,120]
[339634692,1727772614831,500.0,0.00021999,120]
[339634693,1727772616915,574.11,0.00021999,120]
[339634694,1727772617238,500.0,0.00021999,120]
[339634695,1727772617404,500.0,0.00021999,120]
[339634696,1727772618761,500.0,0.00021999,120]
[339634697,1727772618875,500.0,0.00021999,120]
[339634698,1727772619625,500.0,0.00021999,120]
[339634699,1727772620256,500.0,0.00021999,120]
[339634700,1727772620375,549.86,0.00021999,120]
[339634701,1727772621167,500.0,0.00021999,120]
[339634702,1727772621880,500.0,0.00021999,120]
[339634703,1727772622222,566.37129169,0.00021999,120]
[339634704,1727772622982,500.0,0.00021999,120]
[339634705,1727772623213,653.61,0.00021999,120]
[339634706,1727772625499,500.0,0.00021999,120]
[339634707,1727772627118,500.0,0.00021999,120]
[339634708,1727772627362,500.0,0.00021999,120]
[339634709,1727772627415,500.0,0.00021999,120]
[339634710,1727772627669,514.20717776,0.00021999,120]
[339634711,1727772629467,500.0,0.00021999,120]
[339634712,1727772630769,500.0,0.00021999,120]
[339634717,1727772633476,500.0,0.00021999,120]
[339634718,1727772634153,566.59,0.00021999,120]
[339634749,1727772634843,-225.973093,0.00014598,2]
[339634751,1727772634853,-175.0,0.00014774,2]
[339634753,1727772634862,-175.0,0.00014815,2]
[339634755,1727772634874,-175.0,0.00014855,2]
[339634757,1727772634885,-175.0,0.00014896,2]
[339634759,1727772634894,-175.0,0.00014936,2]
[339634761,1727772634904,-175.0,0.00014977,2]
[339634763,1727772634914,-175.0,0.00015017,2]
[339634764,1727772634926,-175.0,0.00015058,2]
[339634765,1727772634937,-175.0,0.00015098,2]
[339634766,1727772634948,-175.0,0.00015139,2]
[339634767,1727772634958,-175.0,0.00015179,2]
[339634768,1727772634969,-175.0,0.0001522,2]
[339634769,1727772634979,-175.0,0.0001526,2]
[339634770,1727772634990,-225.973093,0.00015283,2]
[339634771,1727772635001,-175.0,0.00015301,2]
[339634772,1727772635011,-196.81447112,0.00015322,2]
[339634773,1727772635022,-175.0,0.00015341,2]
[339634774,1727772635033,-175.0,0.00015382,2]
[339634775,1727772635045,-175.0,0.00015422,2]
[339634776,1727772635057,-175.0,0.00015463,2]
[339634777,1727772635070,-175.0,0.00015503,2]
[339634778,1727772635082,-175.0,0.00015544,2]
[339634779,1727772635093,-500.0,0.00015616,2]
[339634780,1727772635104,-300.0,0.00015616,2]
[339634781,1727772635116,-300.0,0.00015616,2]
[339634782,1727772635126,-198.1456348,0.00015694,2]
[339634783,1727772635606,555.66,0.00021999,120]
[339634784,1727772635753,500.0,0.00021999,120]
[339634787,1727772637671,500.0,0.00021999,120]
[339634821,1727772638009,-5698.5400838,0.00015694,2]
[339634823,1727772638019,-175.89446838,0.0001579,2]
[339634824,1727772638029,-175.89446837,0.00015803,2]
[339634825,1727772638039,-175.89446837,0.00015816,2]
[339634826,1727772638050,-175.89446837,0.00015829,2]
[339634827,1727772638060,-1000.0,0.00015832,2]
[339634828,1727772638070,-175.89446837,0.00015842,2]
[339634829,1727772638081,-288.87248282,0.0001588,2]
[339634830,1727772638091,-17400.02963844,0.0001588,2]
[339634831,1727772638104,-281.05910888,0.0001588,2]
[339634832,1727772638548,500.0,0.00021999,120]
[339634834,1727772639103,533.29068807,0.00021999,120]
[339634865,1727772639898,-916.14411214,0.0001588,2]
[339634866,1727772640008,-3834.36575158,0.0001588,2]
[339634867,1727772640020,-2074.48999662,0.0001588,2]
[339634868,1727772640330,500.0,0.00021999,120]
[339634890,1727772643206,510.16,0.00021999,120]
[339634891,1727772643336,-12016.5782566,0.00015842,2]
[339634893,1727772644549,500.0,0.00021999,120]
[339634894,1727772645095,500.0,0.00021999,120]
[339634895,1727772645154,500.0,0.00021999,120]
[339634946,1727772646421,500.0,0.00021999,120]
[339634947,1727772646474,500.0,0.00021999,120]
[339634948,1727772648308,500.0,0.00021999,120]
[339634949,1727772648621,500.0,0.00021999,120]
[339634950,1727772648988,500.0,0.00021999,120]
[339634951,1727772649132,500.0,0.00021999,120]
[339634952,1727772649482,536.62,0.00021999,120]
[339634953,1727772651248,500.0,0.00021999,120]
[339634954,1727772651963,500.0,0.00021999,120]
[339634955,1727772652277,500.0,0.00021999,120]
[339634956,1727772654263,500.0,0.00021999,120]
[339634957,1727772654350,521.31,0.00021999,120]
[339634958,1727772654665,500.0,0.00021999,120]
[339634959,1727772658804,500.0,0.00021999,120]
[339634960,1727772658880,500.0,0.00021999,120]
[339634961,1727772661508,500.0,0.00021999,120]
[339634967,1727772662785,500.0,0.00021999,120]
[339634971,1727772664311,274.98444614,0.00021999,120]
[339634972,1727772665332,573.79,0.00021999,120]
[339634974,1727772667629,500.0,0.00021999,120]
[339634975,1727772668012,500.0,0.00021999,120]
[339634976,1727772670494,519.44299104,0.00021999,120]
[339634977,1727772670999,500.0,0.00021999,120]
[339634978,1727772672124,500.0,0.00021999,120]
[339634979,1727772672725,500.0,0.00021999,120]
[339634980,1727772673531,504.59683471,0.00021999,120]
[339634981,1727772676334,500.0,0.00021999,120]
[339634982,1727772676909,500.0,0.00021999,120]
[339634983,1727772676976,500.0,0.00021999,120]
[339634984,1727772677024,500.0,0.00021999,120]
[339634985,1727772677912,500.0,0.00021999,120]
[339634986,1727772677959,500.0,0.00021999,120]
[339634987,1727772679294,504.30276054,0.00021999,120]
[339634988,1727772680509,501.69987949,0.00021999,120]
[339634989,1727772681275,500.0,0.00021999,120]
[339634990,1727772681322,500.0,0.00021999,120]
[339634991,1727772683691,500.0,0.00021999,120]
[339634992,1727772684621,500.0,0.00021999,120]
[339634993,1727772685118,500.0,0.00021999,120]
[339634994,1727772686481,500.0,0.00021999,120]
[339634995,1727772686538,281.17828214,0.00021999,120]
[339634996,1727772687060,500.0,0.00021999,120]
[339634997,1727772687167,500.0,0.00021999,120]
[339634998,1727772688222,550.29449381,0.00021999,120]
[339634999,1727772688783,510.9,0.00021999,120]
[339635000,1727772688857,500.0,0.00021999,120]
[339635001,1727772689657,500.0,0.00021999,120]
[339635002,1727772690614,500.0,0.00021999,120]
[339635003,1727772690668,742.53,0.00021999,120]
[339635004,1727772692137,511.62143274,0.00021999,120]
[339635005,1727772692217,500.0,0.00021999,120]
[339635006,1727772693778,500.0,0.00021999,120]
[339635007,1727772693888,500.0,0.00021999,120]
[339635008,1727772694916,515.47,0.00021999,120]
[339635010,1727772695321,500.0,0.00021999,120]
[339635011,1727772695784,500.0,0.00021999,120]
[339635012,1727772696148,500.0,0.00021999,120]
[339635013,1727772696258,509.13662898,0.00021999,120]
[339635014,1727772699746,548.72,0.00021999,120]
[339635015,1727772700396,500.0,0.00021999,120]
[339635016,1727772700815,500.0,0.00021999,120]
[339635017,1727772700969,500.0,0.00021999,120]
[339635018,1727772703083,500.0,0.00021999,120]
[339635019,1727772704378,503.00577246,0.00021999,120]
[339635020,1727772706164,500.0,0.00021999,120]
[339635021,1727772707212,500.0,0.00021999,120]
[339635022,1727772707726,500.0,0.00021999,120]
[339635023,1727772708241,500.0,0.00021999,120]
[339635024,1727772710555,500.0,0.00021999,120]
[339635025,1727772711214,500.0,0.00021999,120]
[339635026,1727772713253,500.0,0.00021999,120]
[339635027,1727772715119,500.0,0.00021999,120]
[339635028,1727772715210,500.0,0.00021999,120]
[339635029,1727772716369,500.0,0.00021999,120]
[339635030,1727772716527,540.7,0.00021999,120]
[339635031,1727772716586,500.0,0.00021999,120]
[339635032,1727772716637,500.0,0.00021999,120]
[339635033,1727772716800,500.0,0.00021999,120]
[339635034,1727772716919,500.0,0.00021999,120]
[339635035,1727772718503,500.0,0.00021999,120]
[339635036,1727772720480,500.0,0.00021999,120]
[339635037,1727772721810,548.23,0.00021999,120]
[339635038,1727772722005,500.0,0.00021999,120]
[339635039,1727772722052,1133.63,0.00021999,120]
[339635040,1727772723164,500.0,0.00021999,120]
[339635041,1727772723975,500.0,0.00021999,120]
[339635042,1727772724405,319.00142939,0.00021999,120]
[339635043,1727772724737,500.0,0.00021999,120]
[339635044,1727772725036,500.0,0.00021999,120]
[339635045,1727772725984,500.0,0.00021999,120]
[339635046,1727772728402,528.04,0.00021999,120]
[339635047,1727772728656,500.0,0.00021999,120]
[339635048,1727772728846,522.23,0.00021999,120]
[339635049,1727772730646,500.0,0.00021999,120]
[339635050,1727772730697,500.0,0.00021999,120]
[339635051,1727772731421,500.0,0.00021999,120]
[339635052,1727772732605,500.0,0.00021999,120]
[339635053,1727772732819,500.0,0.00021999,120]
[339635054,1727772733351,500.0,0.00021999,120]
[339635055,1727772733554,684.29,0.00021999,120]
[339635056,1727772735853,675.96,0.00021999,120]
[339635057,1727772736542,553.18524093,0.00021999,120]
[339635058,1727772737667,550.83,0.00021999,120]
[339635059,1727772738851,500.53,0.00021999,120]
[339635060,1727772738956,536.14,0.00021999,120]
[339635061,1727772744445,500.0,0.00021999,120]
[339635062,1727772744679,500.0,0.00021999,120]
[339635063,1727772746212,500.0,0.00021999,120]
[339635064,1727772747475,500.0,0.00021999,120]
[339635065,1727772747782,533.46,0.00021999,120]
[339635066,1727772749000,500.0,0.00021999,120]
[339635067,1727772749433,500.0,0.00021999,120]
[339635068,1727772750524,500.0,0.00021999,120]
[339635069,1727772751927,516.76,0.00021999,120]
[339635070,1727772752696,500.0,0.00021999,120]
[339635071,1727772754244,500.0,0.00021999,120]
[339635072,1727772754981,500.0,0.00021999,120]
[339635073,1727772755728,500.0,0.00021999,120]
[339635074,1727772756887,500.0,0.00021999,120]
[339635075,1727772757711,500.0,0.00021999,120]
[339635076,1727772757942,500.0,0.00021999,120]
[339635077,1727772758405,500.0,0.00021999,120]
[339635078,1727772758468,500.0,0.00021999,120]
[339635079,1727772760193,500.0,0.00021999,120]
[339635080,1727772761728,500.0,0.00021999,120]
[339635086,1727772764650,500.0,0.00021999,120]
[339635087,1727772764702,500.0,0.00021999,120]
[339635088,1727772764760,660.36,0.00021999,120]
[339635089,1727772764872,502.73065032,0.00021999,120]
[339635094,1727772765819,500.0,0.00021999,120]
[339635100,1727772768328,500.0,0.00021999,120]
[339635101,1727772768605,500.0,0.00021999,120]
[339635102,1727772771355,500.0,0.00021999,120]
[339635103,1727772774306,246.18788264,0.00021999,120]
[339635104,1727772776067,500.0,0.00021999,120]
[339635105,1727772778022,534.51,0.00021999,120]
[339635106,1727772778095,500.0,0.00021999,120]
[339635107,1727772779098,500.0,0.00021999,120]
[339635111,1727772782005,500.0,0.00021999,120]
[339635112,1727772782551,500.0,0.00021999,120]
[339635113,1727772782841,500.0,0.00021999,120]
[339635114,1727772784857,511.79851394,0.00021999,120]
[339635115,1727772785015,500.0,0.00021999,120]
[339635116,1727772785309,500.0,0.00021999,120]
[339635117,1727772785874,500.0,0.00021999,120]
[339635118,1727772786003,500.0,0.00021999,120]
[339635119,1727772786048,500.0,0.00021999,120]
[339635120,1727772786707,500.0,0.00021999,120]
[339635121,1727772787331,500.0,0.00021999,120]
[339635122,1727772790603,500.0,0.00021999,120]
[339635123,1727772792524,500.0,0.00021999,120]
[339635124,1727772792637,500.0,0.00021999,120]
[339635125,1727772795942,500.0,0.00021999,120]
[339635126,1727772796268,500.0,0.00021999,120]
[339635127,1727772798781,500.0,0.00021999,120]
[339635128,1727772799170,574.49,0.00021999,120]
[339635129,1727772800576,502.32054943,0.00021999,120]
[339635130,1727772801712,500.0,0.00021999,120]
[339635131,1727772803385,500.0,0.00021999,120]
[339635132,1727772804170,500.0,0.00021999,120]
[339635133,1727772804792,500.0,0.00021999,120]
[339635134,1727772808382,821.46,0.00021999,120]
[339635135,1727772810942,500.0,0.00021999,120]
[339635136,1727772814878,500.0,0.00021999,120]
[339635137,1727772817644,500.0,0.00021999,120]
[339635138,1727772819548,500.0,0.00021999,120]
[339635139,1727772821162,500.0,0.00021999,120]
[339635140,1727772821651,500.0,0.00021999,120]
[339635141,1727772821915,500.0,0.00021999,120]
[339635142,1727772823536,500.0,0.00021999,120]
[339635143,1727772824878,506.24665287,0.00021999,120]
[339635144,1727772826878,500.0,0.00021999,120]
[339635145,1727772827577,542.07,0.00021999,120]
[339635146,1727772828302,500.0,0.00021999,120]
[339635147,1727772830682,500.0,0.00021999,120]
[339635149,1727772831762,500.0,0.00021999,120]
[339635150,1727772832040,500.0,0.00021999,120]
[339635151,1727772832402,500.0,0.00021999,120]
[339635152,1727772833151,673.35,0.00021999,120]
[339635153,1727772834652,500.0,0.00021999,120]
[339635154,1727772834769,431.21938142,0.00021999,120]
[339635155,1727772836814,500.0,0.00021999,120]
[339635156,1727772840673,500.0,0.00021999,120]
[339635157,1727772841107,500.0,0.00021999,120]
[339635158,1727772841765,500.0,0.00021999,120]
[339635159,1727772842248,500.0,0.00021999,120]
[339635160,1727772842367,510.63574936,0.00021999,120]
[339635161,1727772846108,531.4816371,0.00021999,120]
[339635162,1727772846186,502.40551434,0.00021999,120]
[339635163,1727772846659,500.0,0.00021999,120]
[339635164,1727772848778,500.0,0.00021999,120]
[339635165,1727772848828,500.0,0.00021999,120]
[339635166,1727772849262,500.0,0.00021999,120]
[339635167,1727772851415,500.0,0.00021999,120]
[339635168,1727772852179,500.0,0.00021999,120]
[339635169,1727772854487,500.0,0.00021999,120]
[339635170,1727772856823,500.0,0.00021999,120]
[339635171,1727772857837,398.14,0.00021999,120]
[339635172,1727772857931,500.0,0.00021999,120]
[339635173,1727772858354,500.0,0.00021999,120]
[339635174,1727772858409,500.0,0.00021999,120]
[339635175,1727772859015,500.0,0.00021999,120]
[339635176,1727772859061,500.0,0.00021999,120]
[339635177,1727772862718,500.0,0.00021999,120]
[339635178,1727772864885,500.0,0.00021999,120]
[339635179,1727772864981,500.0,0.00021999,120]
[339635180,1727772865899,500.0,0.00021999,120]
[339635181,1727772866678,500.0,0.00021999,120]
[339635182,1727772868847,500.0,0.00021999,120]
[339635183,1727772869072,500.0,0.00021999,120]
[339635184,1727772870582,500.0,0.00021999,120]
[339635185,1727772870629,500.0,0.00021999,120]
[339635186,1727772871610,500.0,0.00021999,120]
[339635187,1727772871903,500.0,0.00021999,120]
[339635188,1727772872270,500.0,0.00021999,120]
[339635189,1727772873746,500.0,0.00021999,120]
[339635190,1727772873806,523.5,0.00021999,120]
[339635191,1727772874807,500.0,0.00021999,120]
[339635192,1727772875073,500.0,0.00021999,120]
[339635193,1727772876379,500.0,0.00021999,120]
[339635194,1727772876874,500.0,0.00021999,120]
[339635195,1727772877139,500.0,0.00021999,120]
[339635196,1727772878707,597.79,0.00021999,120]
[339635197,1727772880528,500.0,0.00021999,120]
[339635198,1727772881115,500.0,0.00021999,120]
[339635199,1727772881618,504.1055798,0.00021999,120]
[339635200,1727772883489,500.0,0.00021999,120]
[339635201,1727772883902,500.0,0.00021999,120]
[339635202,1727772885544,500.0,0.00021999,120]
[339635203,1727772886287,500.0,0.00021999,120]
[339635204,1727772886902,500.0,0.00021999,120]
[339635205,1727772888167,500.0,0.00021999,120]
[339635206,1727772889160,532.57,0.00021999,120]
[339635207,1727772889450,574.05652052,0.00021999,120]
[339635208,1727772893701,565.63679619,0.00021999,120]
[339635209,1727772893898,500.0,0.00021999,120]
[339635210,1727772894094,513.25,0.00021999,120]
[339635211,1727772894762,500.0,0.00021999,120]
[339635212,1727772897479,500.0,0.00021999,120]
[339635213,1727772902752,526.95969937,0.00021999,120]
[339635214,1727772903038,500.0,0.00021999,120]
[339635215,1727772904418,500.0,0.00021999,120]
[339635216,1727772904772,524.46,0.00021999,120]
[339635217,1727772905295,500.0,0.00021999,120]
[339635218,1727772906319,570.13717725,0.00021999,120]
[339635219,1727772907252,500.0,0.00021999,120]
[339635220,1727772907409,500.0,0.00021999,120]
[339635221,1727772907840,506.88235805,0.00021999,120]
[339635222,1727772909177,500.0,0.00021999,120]
[339635223,1727772909711,500.0,0.00021999,120]
[339635224,1727772913468,500.0,0.00021999,120]
[339635225,1727772914281,500.0,0.00021999,120]
[339635226,1727772914548,500.0,0.00021999,120]
[339635227,1727772915867,500.0,0.00021999,120]
[339635228,1727772918209,500.0,0.00021999,120]
[339635229,1727772918686,500.0,0.00021999,120]
[339635230,1727772921629,500.0,0.00021999,120]
[339635231,1727772921824,500.0,0.00021999,120]
[339635232,1727772922175,500.0,0.00021999,120]
[339635233,1727772923345,520.96,0.00021999,120]
[339635234,1727772925684,500.0,0.00021999,120]
[339635235,1727772926717,522.95963382,0.00021999,120]
[339635236,1727772928711,500.0,0.00021999,120]
[339635237,1727772931849,500.0,0.00021999,120]
[339635238,1727772932933,500.0,0.00021999,120]
[339635239,1727772939038,274.0449748,0.00021999,120]
[339635240,1727772939823,502.484682,0.00021999,120]
[339635241,1727772945958,509.64236717,0.00021999,120]
[339635242,1727772946495,500.0,0.00021999,120]
[339635243,1727772946634,500.0,0.00021999,120]
[339635244,1727772949361,335.0338233,0.00021999,120]
[339635245,1727772949952,500.0,0.00021999,120]
[339635246,1727772951405,500.0,0.00021999,120]
[339635247,1727772951663,504.42571198,0.00021999,120]
[339635248,1727772955516,500.0,0.00021999,120]
[339635249,1727772957160,500.0,0.00021999,120]
[339635250,1727772957415,539.87,0.00021999,120]
[339635251,1727772960160,500.0,0.00021999,120]
[339635252,1727772961651,500.0,0.00021999,120]
[339635253,1727772963483,500.0,0.00021999,120]
[339635254,1727772965101,537.82,0.00021999,120]
[339635255,1727772966567,500.0,0.00021999,120]
[339635256,1727772967734,536.93000962,0.00021999,120]
[339635257,1727772967853,500.0,0.00021999,120]
[339635258,1727772973127,511.26,0.00021999,120]
[339635259,1727772973913,500.0,0.00021999,120]
[339635260,1727772976267,500.0,0.00021999,120]
[339635261,1727772977365,500.0,0.00021999,120]
[339635262,1727772977575,569.74,0.00021999,120]
[339635263,1727772977648,500.0,0.00021999,120]
[339635264,1727772978297,500.0,0.00021999,120]
[339635265,1727772982140,500.0,0.00021999,120]
[339635266,1727772986235,500.0,0.00021999,120]
[339635267,1727772987642,500.0,0.00021999,120]
[339635268,1727772987753,500.0,0.00021999,120]
[339635269,1727772989091,501.51446805,0.00021999,120]
[339635270,1727772989818,1000.0,0.00021999,120]
[339635271,1727772992074,500.0,0.00021999,120]
[339635272,1727772992211,500.0,0.00021999,120]
[339635273,1727772995316,500.0,0.00021999,120]
[339635274,1727772999184,500.0,0.00021999,120]
[339635275,1727773001986,500.0,0.00021999,120]
[339635276,1727773004577,500.0,0.00021999,120]
[339635277,1727773006157,570.47229954,0.00021999,120]
[339635278,1727773006465,500.0,0.00021999,120]
[339635279,1727773009411,500.0,0.00021999,120]
[339635280,1727773011811,500.0,0.00021999,120]
[339635281,1727773012392,500.0,0.00021999,120]
[339635282,1727773012892,500.0,0.00021999,120]
[339635283,1727773013530,620.52,0.00021999,120]
[339635284,1727773014938,500.0,0.00021999,120]
[339635285,1727773016446,500.0,0.00021999,120]
[339635286,1727773016917,500.0,0.00021999,120]
[339635287,1727773017294,500.0,0.00021999,120]
[339635288,1727773017402,500.0,0.00021999,120]
[339635289,1727773019687,500.0,0.00021999,120]
[339635290,1727773024187,500.0,0.00021999,120]
[339635291,1727773025181,500.0,0.00021999,120]
[339635292,1727773026023,5000.0,0.00021999,120]
[339635293,1727773027170,500.0,0.00021999,120]
[339635294,1727773029420,500.0,0.00021999,120]
[339635295,1727773029486,521.17,0.00021999,120]
[339635296,1727773030231,500.0,0.00021999,120]
[339635297,1727773032152,500.0,0.00021999,120]
[339635298,1727773032884,500.0,0.00021999,120]
[339635299,1727773036519,500.0,0.00021999,120]
[339635300,1727773039269,500.0,0.00021999,120]
[339635301,1727773039459,500.0,0.00021999,120]
[339635302,1727773040188,500.0,0.00021999,120]
[339635303,1727773042230,497.45393262,0.00021999,120]
[339635304,1727773043486,500.0,0.00021999,120]
[339635305,1727773043872,502.20824389,0.00021999,120]
[339635306,1727773044413,500.0,0.00021999,120]
[339635307,1727773045911,500.0,0.00021999,120]
[339635308,1727773046024,500.0,0.00021999,120]
[339635309,1727773046673,500.0,0.00021999,120]
[339635310,1727773046804,500.0,0.00021999,120]
[339635311,1727773047114,516.87,0.00021999,120]
[339635312,1727773048208,548.18,0.00021999,120]
[339635313,1727773048813,500.0,0.00021999,120]
[339635314,1727773048916,507.7177427,0.00021999,120]
[339635315,1727773051914,500.0,0.00021999,120]
[339635316,1727773052818,500.0,0.00021999,120]
[339635317,1727773052885,500.0,0.00021999,120]
[339635318,1727773053899,10000.0,0.00021999,120]
[339635319,1727773054130,501.93464892,0.00021999,120]
[339635320,1727773055444,500.0,0.00021999,120]
[339635321,1727773056126,500.0,0.00021999,120]
[339635322,1727773057409,886.34,0.00021999,120]
[339635323,1727773059996,501.11860984,0.00021999,120]
[339635324,1727773060128,500.0,0.00021999,120]
[339635325,1727773061578,500.0,0.00021999,120]
[339635326,1727773061636,527.63,0.00021999,120]
[339635327,1727773061688,500.0,0.00021999,120]